[Event "ITT 1st Parada Jamundi 2022"]
[Site "Jamundi Valle"]
[Date "2022.12.10"]
[Round "8.15"]
[White "Borrero, Alexander"]
[Black "Estrada Velandia, Henry Andres"]
[Result "1-0"]
[ECO "C02"]
[WhiteElo "1988"]
[BlackElo "1883"]
[Annotator "TA"]
[PlyCount "125"]
[EventDate "2022.12.05"]
[EventType "swiss"]
[EventCountry "COL"]
[SourceTitle "playchess.com"]
[Source "ChessBase"]
[SourceQuality "1"]
[TimeControl "5400+30"]

{[%evp 12,125,-31,-24,-23,-32,-28,-29,-26,-42,-39,-41,0,-66,0,-121,-76,-106,-85,-82,-16,-22,-12,-35,48,-25,0,0,8,-39,0,-14,0,-39,9,0,168,-32,0,-48,-44,-44,-17,-19,35,37,50,-20,337,314,314,322,408,297,418,427,447,432,477,452,460,479,425,467,783,754,970,969,1070,917,899,963,954,802,909,883,12275,11222,6111,6111,29975,29976,29980,29977,29991,484,470,470,470,470,29977,29978,29978,29979,29979,29980,29984,29981,29981,29981,29981,29980,29982,29983,29983,29984,29984,29985,29985,29986,29986,29987,29987,29988,29993,367]} 1. e4 {[%emt 0:00:04]} e6 {[%emt 0:06:47]} 2. d4 {[%emt 0:04:31]} d5 {[%emt 0:00:27]} 3. e5 {[%emt 0:00:27]} c5 {[%emt 0:01:15]} 4. Nf3 {[%emt 0:00:27]} cxd4 5. Bd3 {[%emt 0:00:43]} Bc5 {[%emt 0:04:22]} 6. Nbd2 {[%emt 0:00:17]} Nc6 {[%emt 0:02:48]} 7. O-O {[%emt 0:00:28]} Nge7 {[%emt 0:00:17] C02: French: Advance Variation.} 8. Nb3 {[%emt 1:27:33]} Bb6 {[%emt 1:18:34]} 9. a4 {[%emt 0:00:00][%cal Oa4a5]} a6 {[%emt 0:00:00] [#] Black has an edge.} 10. c3 $146 {[%emt 0:00:00]} ({Predecessor:} 10. Re1 Ng6 11. Bxg6 hxg6 12. Nbxd4 Nxd4 13. Nxd4 Qh4 14. Nf3 Qxf2+ 15. Kh1 Bd7 16. Bf4 {½-½ (49) Naroditsky,D (2616)-Barria Zuniga,D (2341) Chess.com INT 2022}) 10... dxc3 {[%emt 0:01:00]} 11. bxc3 {[%emt 0:00:00]} h6 {[%emt 0:00:00]} 12. Bc2 {[%emt 0:00:00]} (12. Rb1 $11) 12... O-O {[%emt 0:00:00]} (12... Qc7 $15 13. Qe2 Na5) 13. h4 {[%emt 0:02:30]} (13. Qd3 $11 Ng6 14. Ba3) 13... f5 {[%emt 0:00:00]} 14. Ba3 {[%emt 0:00:00]} Bc7 {[%emt 0:00:00]} (14... Rf7 {is interesting.} 15. Re1 Ng6 16. h5 Nf4) 15. Re1 {[%emt 0:00:00]} b6 {[%emt 0:00:00]} (15... Re8 $17) 16. Nbd4 {[%emt 0:00:00]} Rf7 {[%emt 0:00:00]} 17. h5 {[%emt 0:00:00]} Na5 {[%emt 0:00:00]} (17... Qe8 $15) 18. Bd3 {[%emt 0:00:00]} (18. g4 $1 $14) 18... Bd7 {[%emt 0:00:00]} 19. Qe2 {[%emt 0:00:00]} Qc8 {[%emt 0:00:00]} 20. Rec1 {[%emt 0:00:00]} (20. Bxe7 $11 {feels stronger.} Rxe7 21. c4 dxc4 22. Bxc4) 20... Qb7 {[%emt 0:00:00]} 21. Rcb1 {[%emt 0:00:00]} Qc8 {[%emt 0:00:00]} 22. Rc1 {[%emt 0:00:00]} Qb7 {[%emt 0:00:00]} (22... Bd8 $15) 23. Rab1 {[%emt 0:00:00]} Qc8 $2 {[%emt 0:00:00]} (23... Nec6 $11 {and Black has nothing to worry.}) 24. Ra1 $2 {[%emt 0:00:00]} (24. Bxe7 $1 $18 Rxe7 25. c4) 24... Qb7 {[%emt 0:00:00]} 25. Nh4 {[%emt 0:00:00]} (25. Rcb1 $11 {is superior.}) 25... Nec6 $1 $15 {[%emt 0:00:00]} 26. Nhf3 {[%emt 0:00:00]} Nxd4 {[%emt 0:00:00]} (26... Nc4 {simplifies} 27. Nxc6 Bxc6 28. Bd6 Re8) 27. Nxd4 {[%emt 0:00:00]} Bxa4 {[%emt 0:00:00]} ({Black should try} 27... Qc8 $11) 28. Nxe6 $14 {[%emt 0:00:00]} Nb3 {[%emt 0:00:00][%csl LRa1,LRc1] [#]} 29. Nxc7 {[%emt 0:00:00]} ({White should play} 29. Nd4 $1 $14) 29... Nxc1 $4 {[%emt 0:00:00][%mdl 8192] This costs Black the game.} (29... Rxc7 30. Bxf5 Nxa1 31. Rxa1) (29... Qxc7 $11 {and Black is okay.} 30. c4 (30. e6 Rf6 $17) 30... d4) 30. Bxc1 $18 {[%emt 0:00:00][%mdl 64] Discovered Attack. The board is on fire.} Qxc7 {[%emt 0:00:00]} 31. Rxa4 {[%emt 0:00:00]} Re8 {[%emt 0:00:00]} 32. f4 {[%emt 0:00:00]} (32. Rxa6 Rxe5 33. Ra8+ Rf8 34. Rxf8+ Kxf8 $18) 32... Qxc3 {[%emt 0:00:00]} (32... Ra8 {was worth a try.} 33. Ba3 Qxc3) 33. Bd2 {[%emt 0:00:00]} (33. Be3 a5 34. Rd4 (34. Bxb6 $2 Qc6 $19) 34... Kh8 35. Rxd5 a4 $18) 33... Qc5+ {[%emt 0:00:00]} 34. Be3 {[%emt 0:00:00][%mdl 64] Skewer} Qc3 {[%emt 0:00:00]} 35. Rxa6 {[%emt 0:00:00]} ({Less strong is} 35. Bxb6 Rff8 36. Qe3 Re6 $18) 35... Rb8 {[%emt 0:00:00]} 36. Rxb6 {[%emt 0:00:00]} Rxb6 {[%emt 0:00:00]} 37. Bxb6 {[%emt 0:00:00] This pair of bishops is nice.} Rb7 {[%emt 0:00:00] Inhibits e6.} (37... Qc1+ $142 38. Qf1 Qb2) 38. Bf2 {[%emt 0:00:00][%cal Bb6f2,Bf2g3,Bg3h4][%mdl 32]} ({Stronger than} 38. Be3 Rb2 39. Qf1 Rb3 40. Bxf5 Qxe3+ 41. Qf2 Kf7 42. Qxe3 Rxe3 $17) 38... Qc1+ {[%emt 0:00:00]} 39. Kh2 {[%emt 0:00:00]} Qxf4+ {[%emt 0:02:07]} 40. Bg3 {[%emt 0:00:00]} Qg5 {[%emt 0:02:25]} 41. Qf3 $1 {[%emt 0:00:00][%csl LRd5,LRf5]} Rf7 {[%emt 0:01:27]} 42. Kh3 {[%emt 0:00:00]} f4 {[%emt 0:02:49]} 43. e6 {[%emt 0:01:48]} Rf8 {[%emt 0:00:33]} 44. Bh4 {[%emt 0:00:21]} Qe5 {[%emt 0:00:51]} 45. e7 {[%emt 0:00:20] Bh7+ would kill now.} Rc8 {[%emt 0:06:38]} 46. Bg6 {[%emt 0:01:38]} Qe6+ {[%emt 0:01:10]} 47. Kh2 {[%emt 0:00:15]} Qe5 {[%emt 0:00:00]} 48. e8=Q+ (48. Qg4 $142 Qb8 49. Qe6+ Kh8 {[#]} 50. Bf6 $1 {[%mdl 512]} Rf8 51. Be5 (51. e8=B $2 {too greedy.} Rxf6 52. Qxd5 f3+ 53. g3 f2 $19) 51... Qe8 52. Bxe8 Rf6 53. Bxf6 f3 54. Bg6 gxf6 55. e8=Q+ Kg7 56. Q8g8#) 48... Rxe8 {[%emt 0:00:00]} 49. Bxe8 {[%emt 0:01:55]} Qxe8 {[%emt 0:00:00]} 50. Qxd5+ {[%emt 0:00:16]} Kh8 {[%emt 0:00:00]} (50... Kh7 $18 51. Qd3+ Kg8) 51. Qd8 {[%emt 0:00:22] White mates.} Qxd8 {[%emt 0:00:09]} 52. Bxd8 {[%emt 0:00:05] KB-K3P} Kh7 {[%emt 0:01:18]} 53. Kh3 {[%emt 0:00:12]} g5 {[%emt 0:01:25]} 54. hxg6+ {[%emt 0:00:10]} Kxg6 {[%emt 0:00:01] KB-KPP} 55. Kg4 {[%emt 0:00:06]} Kh7 {[%emt 0:00:28]} 56. Bc7 {[%emt 0:00:23]} Kg6 {[%emt 0:00:20]} 57. Bxf4 {[%emt 0:00:15] KB-KP} h5+ {[%emt 0:00:06]} 58. Kh4 {[%emt 0:00:11]} Kf5 {[%emt 0:00:04]} 59. Bc1 {[%emt 0:00:34]} Kg6 {[%emt 0:00:01]} 60. Bg5 {[%emt 0:00:29]} Kh7 {[%emt 0:00:03]} 61. Kxh5 {[%emt 0:00:09]} Kg7 {[%emt 0:00:05]} 62. g4 {[%emt 0:00:24]} Kh7 {[%emt 0:00:01]} 63. Bf6 $2 {[%emt 0:00:25] Weighted Error Value: White=0.38/Black=0.55} (63. Bh6 {mates} Kh8 64. Kg6 Kg8 65. g5 Kh8 66. Kf7 Kh7 67. Bf8 Kh8 68. Bg7+ Kh7 69. g6#) 1-0

[Event "ITT 1st Parada Jamundi 2022"]
[Site "Jamundi Valle"]
[Date "2022.12.10"]
[Round "8.16"]
[White "Luligo Bejarano, Luis Angel"]
[Black "Ramirez, Andres Felipe"]
[Result "1-0"]
[ECO "A36"]
[WhiteElo "1675"]
[BlackElo "1571"]
[Annotator "NA RC COMBH"]
[PlyCount "74"]
[EventDate "2022.12.05"]
[EventType "swiss"]
[EventCountry "COL"]
[SourceTitle "playchess.com"]
[Source "ChessBase"]
[SourceQuality "1"]
[TimeControl "5400+30"]

1. e4 {[%emt 0:00:17]} c5 {[%emt 0:10:31]} 2. c4 {[%emt 0:00:39]} Nc6 {[%emt 1:20:59]} 3. g3 {[%emt 0:00:15]} Nf6 {[%emt 0:00:00]} 4. Bg2 {[%emt 0:00:29]} g6 {[%emt 0:00:00]} 5. Ne2 {[%emt 0:00:21]} Bg7 {[%emt 0:00:00]} 6. Nbc3 {[%emt 0:00:26]} O-O {[%emt 0:00:00]} 7. O-O {[%emt 0:00:24]} Ne8 {[%emt 0:00:00]} 8. d3 {[%emt 0:00:54]} Nc7 {[%emt 0:00:00]} 9. Be3 {[%emt 0:02:51]} Ne6 {[%emt 0:00:00]} 10. f4 {[%emt 0:01:12]} d6 {[%emt 0:00:00]} 11. Rb1 {[%emt 0:00:36]} Ned4 {[%emt 0:00:00]} 12. h3 {[%emt 0:00:44]} Rb8 {[%emt 0:00:00]} 13. a3 {[%emt 0:05:45]} b6 {[%emt 0:00:00]} 14. b4 {[%emt 0:03:12]} Bb7 {[%emt 0:00:00]} 15. b5 {[%emt 0:00:47]} Nxe2+ {[%emt 0:00:00]} 16. Nxe2 {[%emt 0:00:07]} Nd4 {[%emt 0:00:00]} 17. Nxd4 {[%emt 0:00:25]} cxd4 {[%emt 0:00:00]} 18. Bd2 {[%emt 0:00:16]} f5 {[%emt 0:00:00]} 19. exf5 {[%emt 0:05:48]} Bxg2 {[%emt 0:00:00]} 20. Kxg2 {[%emt 0:00:05]} Rxf5 {[%emt 0:00:00]} 21. Qe2 {[%emt 0:00:36]} e5 {[%emt 0:09:30]} 22. g4 {[%emt 0:00:58]} Rf8 {[%emt 0:00:00]} 23. fxe5 {[%emt 0:00:22]} dxe5 {[%emt 0:00:00]} 24. Qe4 {[%emt 0:01:26]} Qd7 {[%emt 0:00:00]} 25. Bb4 {[%emt 0:04:05]} Rxf1 {[%emt 0:00:00]} 26. Rxf1 {[%emt 0:00:09]} Qe6 {[%emt 0:00:00]} 27. a4 {[%emt 0:10:10]} h6 {[%emt 0:00:00]} 28. Rf2 {[%emt 0:03:10]} Rc8 {[%emt 0:00:00]} 29. Rf1 {[%emt 0:09:24]} Kh7 {[%emt 0:00:00]} 30. Qb7 {[%emt 0:05:14]} e4 {[%emt 0:00:00]} 31. Rf7 {[%emt 0:00:13]} Rg8 {[%emt 0:00:00]} 32. Re7 {[%emt 0:00:57]} Qf6 {[%emt 0:00:00]} 33. Qxe4 {[%emt 0:00:13]} Qg5 {[%emt 0:00:00]} 34. Rxa7 {[%emt 0:04:05]} Qc1 {[%emt 0:00:00]} 35. Qxd4 {[%emt 0:00:47]} Qc2+ {[%emt 0:00:00]} 36. Kg3 {[%emt 0:00:07]} Kh8 {[%emt 0:00:00]} 37. Rxg7 {[%emt 0:00:13]} Ra8 {[%emt 0:08:00]} 1-0

[Event "ITT 1st Parada Jamundi 2022"]
[Site "Jamundi Valle"]
[Date "2022.12.10"]
[Round "8.17"]
[White "Hernandez Pinzon, Helvert"]
[Black "Renteria, Rolando"]
[Result "1-0"]
[ECO "B80"]
[WhiteElo "1835"]
[BlackElo "2046"]
[Annotator "TA"]
[PlyCount "90"]
[EventDate "2022.12.05"]
[EventType "swiss"]
[EventCountry "COL"]
[SourceTitle "playchess.com"]
[Source "ChessBase"]
[SourceQuality "1"]
[TimeControl "5400+30"]

{[%evp 17,90,26,45,0,27,-13,0,-4,-25,-94,-106,-251,-45,-48,-33,-39,0,-2,-8,-45,12,0,8,1,12,0,28,10,62,57,68,64,60,60,80,56,56,52,135,127,132,107,49,62,63,63,235,231,235,216,214,205,242,243,306,141,267,200,193,150,158,154,147,147,1756,1619,29976,29977,29976,29977,29976,29977,29982,29981,29991]} 1. e4 {[%emt 0:03:07]} c5 {[%emt 0:07:55]} 2. Nf3 {[%emt 0:00:30]} d6 {[%emt 0:00:30]} 3. d4 {[%emt 0:00:20]} cxd4 {[%emt 0:00:04]} 4. Nxd4 {[%emt 0:00:02]} Nf6 {[%emt 0:00:10]} 5. Nc3 {[%emt 0:00:08]} a6 {[%emt 0:00:03]} 6. Be3 {[%emt 0:00:11]} e6 {[%emt 0:00:10]} 7. f3 {[%emt 0:00:16]} b5 {[%emt 0:00:08]} 8. g4 {[%emt 0:01:13]} Bb7 {[%emt 0:00:15]} 9. Qd2 {[%emt 0:00:44]} Nfd7 {The main line 9...Nfd7 scores better than 9...h6.} 10. h4 {[%emt 0:03:32] B80: Sicilian Scheveningen: 6 g3 and 6 Be3, including English Attack.} Nb6 {[%emt 0:00:46]} (10... Ne5 $5 {[%cal Rb5b4]}) 11. Bd3 {[%emt 0:01:23]} N8d7 {[%emt 0:00:07]} 12. g5 {[%emt 0:01:38] The position is equal.} Ne5 {[%emt 0:00:12] [#]} 13. b3 $146 {[%emt 0:01:40] Against Nbc4} (13. O-O-O $11 {keeps the balance.}) ({Predecessor:} 13. O-O-O Nbc4 14. Bxc4 Nxc4 15. Qe2 Nxe3 16. Qxe3 b4 17. Nce2 Rc8 18. Kb1 Qc7 19. Rc1 {0-1 (34) Brzezinski,L (1358)-Rozycki,B (2002) Poland 2013}) 13... d5 $17 {[%emt 0:01:06]} 14. exd5 {[%emt 0:09:13]} (14. h5 $17 {keeps fighting.}) 14... Nxd5 $2 {[%emt 0:01:53]} (14... Bb4 $19 15. dxe6 Rc8) 15. Nxd5 $15 {[%emt 0:00:34] Black must now prevent Nf4.} Bxd5 {[%emt 0:01:27]} 16. Be2 {[%emt 0:05:07]} Be7 {[%emt 0:05:04]} (16... Ba3 $5) 17. Rf1 {[%emt 0:10:01]} O-O {[%emt 0:00:37]} 18. f4 {[%emt 0:00:59]} (18. h5 {with more complications.} Qc7 19. O-O-O Rac8 20. Kb1) 18... Nc6 {[%emt 0:00:27]} (18... Nd7 $15) 19. Nxc6 $11 {[%emt 0:07:40]} Bxc6 {[%emt 0:01:20]} 20. Qxd8 {[%emt 0:00:40]} Rfxd8 {[%emt 0:00:04]} 21. c4 {[%emt 0:00:23]} Rac8 {[%emt 0:04:36]} 22. Kf2 {[%emt 0:00:56]} b4 {[%emt 0:02:00]} ({Better is} 22... bxc4 $11 23. Bxc4 Be4) 23. Rfd1 $14 {[%emt 0:00:36]} Kf8 {[%emt 0:01:05]} 24. Bb6 {[%emt 0:03:29]} Rxd1 {[%emt 0:00:19]} 25. Rxd1 {[%emt 0:00:07]} Ke8 {[%emt 0:00:09]} 26. Bf3 {[%emt 0:05:07]} Bxf3 {[%emt 0:01:53]} 27. Kxf3 {[%emt 0:00:04]} Bc5 {[%emt 0:00:13]} ({Black should play} 27... h5 $14) 28. Bxc5 $16 {[%emt 0:01:24]} Rxc5 {[%emt 0:00:03][%mdl 4096] Endgame KR-KR} 29. Rd6 {[%emt 0:00:41]} Ra5 {[%emt 0:04:08]} 30. Rb6 {[%emt 0:01:02]} Rxa2 {[%emt 0:00:01]} 31. Rxb4 {[%emt 0:00:01] Threatens to win with Rb8+.} a5 $2 {[%emt 0:00:01]} ({Black should try} 31... Rh2 $1 $14) 32. Rb8+ $18 {[%emt 0:00:36]} Ke7 {[%emt 0:00:07]} 33. Rb7+ {[%emt 0:00:12]} Ke8 {[%emt 0:00:06]} 34. Ke4 {[%emt 0:00:22]} Rh2 {[%emt 0:13:05]} 35. Rb5 {[%emt 0:01:29]} Rh3 {[%emt 0:00:08]} 36. c5 {[%emt 0:01:44]} (36. Rxa5 Rxb3 37. h5 Rh3 $16) (36. Ke5 $18 {and the rest is easy.}) 36... Kd7 {[%emt 0:00:18]} (36... f6 $16 37. c6 (37. Rxa5 Rxb3 38. Ra8+ Kf7 $16) 37... Rc3) 37. Rxa5 {[%emt 0:00:22]} Rxb3 {[%emt 0:00:24]} 38. Ra7+ {[%emt 0:00:03]} Ke8 {[%emt 0:04:39]} 39. c6 {[%emt 0:11:15][%cal Bc5c6,Bc6c7][%mdl 32] Ra8+ is the strong threat. White is more active.} Rc3 {[%emt 0:00:22] [#]} 40. c7 {[%emt 0:00:12] Hoping for Ke5.} Rc1 $2 {[%emt 0:02:16][%mdl 8192]} (40... Kd7 $16) 41. Ke5 {[%emt 0:03:12][%cal Og5g6] aiming for g6!} Re1+ {[%emt 0:07:06]} 42. Kd6 {[%emt 0:00:23][%cal Rc7c8] White mates.} Rd1+ {[%emt 0:00:01]} 43. Kc6 {[%emt 0:00:17]} Rc1+ {[%emt 0:00:02] [#]} 44. Kb7 $1 {[%emt 0:00:36]} Kd7 {[%emt 0:00:11]} 45. Kb8 {[%emt 0:00:19]} Rc6 {[%emt 0:47:29] Weighted Error Value: White=0.22 (precise) /Black=0.54} 1-0

[Event "ITT 1st Parada Jamundi 2022"]
[Site "Jamundi Valle"]
[Date "2022.12.10"]
[Round "8.18"]
[White "Contreras, Camilo Andres"]
[Black "Simancas Maradei, Miguel Alejand"]
[Result "0-1"]
[ECO "B50"]
[WhiteElo "1848"]
[BlackElo "2027"]
[Annotator "TA"]
[PlyCount "44"]
[EventDate "2022.12.05"]
[EventType "swiss"]
[EventCountry "COL"]
[SourceTitle "playchess.com"]
[Source "ChessBase"]
[SourceQuality "1"]
[TimeControl "5400+30"]

{[%evp 9,44,-8,0,-22,-12,-27,0,0,0,0,5,-35,-24,-10,0,-14,13,-30,8,-2,-11,-11,93,0,24,0,4,-150,-123,-133,-135,-133,-114,-158,-166,-214,-220]} 1. e4 {[%emt 0:04:42]} c5 {[%emt 0:00:14]} 2. Nf3 {[%emt 1:26:48]} d6 {[%emt 0:00:07]} 3. Nc3 {[%emt 0:00:00]} Nf6 {[%emt 0:00:16]} 4. d3 {[%emt 0:00:00]} a6 {[%emt 0:00:39]} 5. a4 {[%emt 0:00:00]} e6 {[%emt 0:00:07]} 6. h3 {[%emt 0:00:00] B50: Sicilian: 2...d6, Miscellaneous.} Be7 {[%emt 0:00:15] [#]} 7. Be3 $146 {[%emt 0:00:00]} ({Predecessor:} 7. Be2 Nc6 8. Bf4 O-O 9. Qd2 e5 10. Be3 Rb8 11. O-O b5 12. axb5 axb5 13. Nh2 {½-½ (49) Hogic,E-Salkic,M (1999) Tuzla 2015}) 7... Bd7 {[%emt 0:03:25]} 8. Be2 {[%emt 0:00:00] The position is equal.} Bc6 {[%emt 0:00:19]} 9. O-O {[%emt 0:00:00]} Nbd7 {[%emt 0:00:29]} 10. Nh2 {[%emt 0:00:00]} d5 {[%emt 0:06:29]} 11. exd5 {[%emt 0:00:00]} exd5 {[%emt 0:00:07]} 12. d4 {[%emt 0:00:00]} c4 {[%emt 0:04:55]} 13. g4 {[%emt 0:05:30][%cal Bg2g4,Bg4g5][%mdl 32]} b5 {[%emt 1:19:38]} 14. axb5 {[%emt 0:00:00]} axb5 {[%emt 0:00:00]} 15. g5 {[%emt 0:00:00]} Ng8 {[%emt 0:00:00] [#]} (15... Rxa1 $11 {keeps the balance.} 16. Qxa1 Ne4) 16. Rxa8 {[%emt 0:00:00]} ({Better is} 16. Bf3 $1 $16 {[%cal Rf3d5]}) 16... Qxa8 $11 {[%emt 0:00:00]} 17. Qa1 {[%emt 0:00:00] Hoping for Qxa8+.} Qb7 {[%emt 0:00:00]} 18. Qa2 $2 {[%emt 0:00:00]} ({White should try} 18. b3 $1 $11) 18... h6 {[%emt 0:00:00]} 19. g6 {[%emt 0:00:00]} fxg6 {[%emt 0:00:00]} 20. Ra1 {[%emt 0:00:00]} b4 {[%emt 0:00:00]} 21. Na4 {[%emt 0:00:00]} Ngf6 {[%emt 0:04:00]} 22. Qb1 {[%emt 0:04:30]} (22. Nc5 $142 Nxc5 23. dxc5) 22... O-O {[%emt 0:00:00] Weighted Error Value: White=0.33/Black=0.24 (precise)} 0-1

[Event "ITT 1st Parada Jamundi 2022"]
[Site "Jamundi Valle"]
[Date "2022.12.10"]
[Round "8.19"]
[White "Idrobo, Juan Manuel"]
[Black "Chavarro, Jeffry"]
[Result "0-1"]
[ECO "B12"]
[WhiteElo "1809"]
[BlackElo "2020"]
[Annotator "TA"]
[PlyCount "122"]
[EventDate "2022.12.05"]
[EventType "swiss"]
[EventCountry "COL"]
[SourceTitle "playchess.com"]
[Source "ChessBase"]
[SourceQuality "1"]
[TimeControl "5400+30"]

{[%evp 9,122,58,78,75,81,67,77,79,83,4,13,-27,0,0,-5,-11,-8,-34,-16,-15,-25,-18,0,0,0,0,0,0,0,0,0,-3,0,-27,-9,-4,-6,-68,-18,-30,-10,-101,-35,-34,-5,-8,-3,-11,0,0,0,-76,-76,-72,-77,-74,-43,-80,-68,-82,-79,-180,-183,-156,-66,-68,-5,-131,-69,-164,-184,-151,-141,-154,-135,-134,-111,-114,-92,-192,-159,-178,-168,-184,-138,-195,-184,-146,-86,-90,0,0,0,-32,-39,-334,-318,-424,-374,-416,-352,-363,-334,-623,-613,-998,-976,-1542,-1470,-1651,-1221,-1714,-1653,-1527,-1458]} 1. e4 {[%emt 0:00:53]} c6 {[%emt 0:09:56]} 2. Nc3 {[%emt 0:00:17]} d6 3. d4 {[%emt 0:00:40]} Nd7 {[%emt 0:04:21]} 4. f4 {[%emt 0:05:15]} e5 {[%emt 0:00:49]} 5. Nf3 {[%emt 0:02:59]} Qc7 {[%emt 0:00:16]} 6. Bc4 {[%emt 0:01:00] B12: Caro-Kann: Advance Variation.} Be7 {[%emt 0:00:07]} 7. O-O {[%emt 0:01:18] Black must now prevent fxe5.} Ngf6 {[%emt 0:00:06]} 8. fxe5 $1 {[%emt 0:04:19] White is better.} dxe5 {[%emt 0:00:05]} 9. Kh1 {[%emt 0:06:09]} (9. Nxe5 $16 Nxe5 10. Bf4 (10. dxe5 Qxe5 11. Kh1 Qc5 $11)) 9... O-O $11 {[%emt 0:00:29]} 10. a4 {[%emt 0:02:12] [#]} (10. Nxe5 {is interesting.} Nxe5 11. dxe5 Qxe5 12. Bf4) 10... h6 $146 {[%emt 0:09:25]} (10... exd4 {looks sharper.} 11. Qxd4 Bc5 12. Qd3 Ng4) ({Predecessor:} 10... exd4 11. Nxd4 Ne5 12. Be2 Be6 13. Nxe6 fxe6 14. Qe1 Ng6 15. Be3 Bd6 16. Bg1 Be5 {½-½ (59) Lipiniks,L (1863)-Florentin,D (1775) Asuncion 2011}) 11. Qe1 {[%emt 0:04:51]} exd4 {[%emt 0:18:45]} 12. Nxd4 {[%emt 0:01:13]} Ne5 {[%emt 0:00:47]} ({Much less strong is} 12... Ng4 13. Bf4 Bd6 14. Ne6 fxe6 15. Bxe6+ Kh7 16. Bxd6 Qxd6 17. Bxg4 $14) 13. Ba2 {[%emt 0:13:01]} Ng6 {[%emt 0:13:05]} ({Reject} 13... Neg4 14. Bf4 Bd6 15. Bxd6 Qxd6 16. Nf3 $11) (13... Bc5 {keeps more tension.} 14. Qg3 Nh5 15. Qh4 Bxd4 16. Qxh5 Ng4) 14. Be3 {[%emt 0:11:12]} (14. Nf5 {simplifies} Be6 15. Bxe6 fxe6 16. Nxe7+ Qxe7 17. Be3) 14... Ng4 {[%emt 0:03:38][%csl Gg4][%cal Rc7h2]} 15. Bg1 {[%emt 0:00:24]} Bc5 {[%emt 0:01:22] ...Bxd4 is the strong threat.} (15... Bd6 {simplifies} 16. h3 Nf6 17. Rd1 Bg3) 16. Rd1 {[%emt 0:02:31]} Bxd4 {[%emt 0:04:02]} 17. Rxd4 {[%emt 0:00:45]} Be6 {[%emt 0:00:06]} 18. Bxe6 {[%emt 0:03:02]} fxe6 {[%emt 0:00:02]} 19. Rd2 {[%emt 0:02:51]} a6 {[%emt 0:02:03]} 20. h3 {[%emt 0:04:06]} N4e5 {[%emt 0:01:04]} (20... Rxf1 {simplifies} 21. Qxf1 N4e5 22. b3 Rd8) 21. Bc5 {[%emt 0:02:52]} Rxf1+ {[%emt 0:01:57]} (21... Nc4 $5 {[%cal Rf8f1]} 22. Rxf8+ Nxf8 $11) 22. Qxf1 {[%emt 0:00:12]} Rd8 $40 {[%emt 0:00:18][%mdl 128] Black has some attack.} 23. Rf2 {[%emt 0:04:17]} (23. Qd1 $11 Rxd2 24. Qxd2) 23... b6 {[%emt 0:05:33]} ({Black should play} 23... b5 $15) 24. Be3 {[%emt 0:00:19]} b5 {[%emt 0:00:02]} 25. Bc5 {[%emt 0:04:39]} (25. b3 $11 {keeps the balance.}) 25... Nd7 {[%emt 0:05:12] Pair of Knights!} (25... Nc4 $17 {Hoping for ...Qe5.} 26. axb5 cxb5) 26. Be3 $15 {[%emt 0:02:42]} Rf8 {[%emt 0:02:49]} (26... Kh7 {feels hotter.} 27. Rf7 Qg3 28. Qc1 Nde5) 27. Rxf8+ {[%emt 0:01:24]} Ndxf8 {[%emt 0:00:02]} 28. Qf2 {[%emt 0:02:14]} (28. b3 {looks sharper.} Nd7 29. Kg1 Qg3 30. Qf2) 28... b4 {[%emt 0:01:28]} 29. Ne2 {[%emt 0:00:31]} Qe5 {[%emt 0:00:12][%csl LRb2,LRe4]} 30. c3 {[%emt 0:05:35]} (30. Nd4 $11) 30... Qxe4 $17 {[%emt 0:00:13]} 31. cxb4 {[%emt 0:02:56]} Qxb4 {[%emt 0:00:11]} 32. Nc3 {[%emt 0:00:17]} Nd7 {[%emt 0:00:43]} 33. Qd2 {[%emt 0:02:18]} Nde5 {[%emt 0:00:23]} 34. Qc2 {[%emt 0:04:21]} c5 {[%emt 0:02:11]} 35. Ne4 {[%emt 0:00:48]} (35. Qe2 $17) 35... Qe1+ $19 {[%emt 0:00:41]} 36. Bg1 {[%emt 0:00:10]} c4 {[%emt 0:00:02]} (36... Nf4 $17 {aiming for ...Ne2.} 37. Kh2 Ned3) 37. Kh2 $1 $15 {[%emt 0:02:15]} Qf1 {[%emt 0:03:29]} (37... Nf4 $15 38. Ng3 Nfd3) 38. Ng3 {[%emt 0:01:24]} (38. Nc5 $1 $11) 38... Qf4 {[%emt 0:00:34]} (38... Qd3 $1 $17 {[%cal Rd3c2]} 39. Qe2 Qxe2 40. Nxe2 Nd3) 39. Qf2 {[%emt 0:00:29] [#]} (39. Qc3 $15) 39... Qxf2 $1 $19 {[%emt 0:00:15]} 40. Bxf2 {[%emt 0:00:11][%mdl 4096] Endgame KBN-KNN} Nd3 {[%emt 0:00:01][%csl LRb2,LRf2]} 41. Bd4 {[%emt 0:00:19]} e5 {[%emt 0:02:19]} 42. Bc3 {[%emt 0:00:09]} Ne7 {[%emt 0:03:04] Prevents Nf5.} 43. Ne4 {[%emt 0:00:41]} Nc8 {[%emt 0:03:41]} 44. Kg3 {[%emt 0:00:48]} (44. Nd2 $17 {keeps fighting.}) 44... Kf7 {[%emt 0:00:13]} 45. Kf3 {[%emt 0:00:22]} Ke6 {[%emt 0:00:11]} 46. Ke3 {[%emt 0:01:10]} Nb6 {[%emt 0:03:00]} (46... Ne7 $19 47. g4 Nd5+ 48. Kd2 N5f4) 47. a5 {[%emt 0:00:27]} (47. b3 $17) 47... Nd5+ {[%emt 0:01:01]} 48. Kf3 {[%emt 0:00:39]} Kd7 {[%emt 0:03:01]} (48... Nxc3 $142 49. bxc3 Ne1+ 50. Kf2 Nd3+ 51. Ke3 Kd5) 49. Nd2 $17 {[%emt 0:00:22]} Nxb2 {[%emt 0:01:02] Black is much more active.} 50. Bxe5 $11 {[%emt 0:00:21]} ({Don't play} 50. Bxb2 c3 51. Bxc3 Nxc3 $17) 50... c3 {[%emt 0:00:32]} 51. Nb3 {[%emt 0:00:42]} g6 {[%emt 0:00:34]} 52. Ke2 $2 {[%emt 0:00:32][%mdl 8192] [#] This move loses the game for White.} ({White should try} 52. Bg7 $15) 52... Kc6 $1 $19 {[%emt 0:00:27]} 53. Bd4 {[%emt 0:00:37]} Kb5 {[%emt 0:00:19]} 54. Bg7 {[%emt 0:00:54]} h5 {[%emt 0:00:18]} 55. Nd4+ {[%emt 0:00:32]} Kxa5 {[%emt 0:00:31]} 56. Ne6 $2 {[%emt 0:00:17]} (56. Kf3 Nd3 57. Ke4) 56... Kb4 {[%emt 0:00:31] Black is clearly winning.} 57. Bf8+ {[%emt 0:00:28]} Kc4 {[%emt 0:00:18] Threatens to win with ...Nd3.} 58. Bh6 {[%emt 0:00:32]} a5 {[%emt 0:00:21][%cal Ba6a5,Ba5a4,Ba4a3][%mdl 32] Strongly threatening ...a4.} 59. Nf8 {[%emt 0:00:30]} a4 {[%emt 0:00:13]} 60. Nxg6 {[%emt 0:00:34]} a3 {[%emt 0:00:02]} 61. Ne5+ {[%emt 0:00:17]} Kb5 {[%emt 0:00:28] Weighted Error Value: White=0.62/Black=0.22 (precise)} 0-1